Cogmind - Beta 14 @@@ ROGUE MODE // 2024.09.14 @ 15:55:44 Player: Dull Result: Destroyed by Cetus Guard with Advanced KE Penetrator Performance ------------- Evolutions (6) 3000 Regions Visited (18) 3600 Robots Destroyed (229) 1145 Value Destroyed (10719) 10719 Prototype IDs (50) 1000 Alien Tech Used (0) 0 Bonus (4989) 4989 TOTAL SCORE: 24453 Bonus ------- High Alert Combat Kills 1076 Follower Combat Kills 2013 Entered Garrisons 600 Used RIF Installer 1000 Aligned with FarCom 300 Cogmind --------- Core Integrity 0/1150 Matter 39/300 Energy 88/100 System Corruption 34% Temperature Cool (0) Movement Walking (120) Location -4/Cetus Parts ------- > --- POWER (2) -------- (None) > --- PROPULSION (6) --- Flexi-carbon Leg Myomer Leg > --- UTILITY (8) ------ Large Storage Unit Improved Melee Analysis Suite Improved Target Analyzer Advanced Target Analyzer > --- WEAPON (3) ------- Phasing Sabre Kinetic Spear > --- INVENTORY (15) --- Light Antimatter Reactor Light Antimatter Reactor Light Antimatter Reactor Combat Gravmag System Field Propulsion Array Railgun Hardcell Cannon Peak State ------------ > --- POWER ------------ Reinforced Fission Core Light Antimatter Reactor > --- PROPULSION ------- Field Propulsion Array Field Propulsion Array Field Propulsion Array > --- UTILITY ---------- Improved Heat Sink Large Storage Unit Improved Melee Analysis Suite Improved Melee Analysis Suite Improved Target Analyzer Layered Light Armor Plating Graphene Brace Hacking Suite > --- WEAPON ----------- Smartbomb Launcher Phasing Sabre > --- INVENTORY -------- Light Antimatter Reactor Light Antimatter Reactor Light Antimatter Reactor Flexi-carbon Leg Myomer Leg Myomer Leg Myomer Leg Combat Gravmag System Field Propulsion Array Railgun Hardcell Cannon Improved Plasma Cutter Phasing Sabre Kinetic Spear [Rating: 114] Favorites ----------- Power Ion Engine Engine Ion Engine Power Core Light Nuclear Core Reactor Reinforced Antimatter Reactor Propulsion Light Treads Treads Light Treads Leg Light Armored Exoskeleton Wheel Wheel Hover Unit Combat Airjet Flight Unit Field Propulsion Array Utility Hacking Suite Device Improved Shield Generator Storage Large Storage Unit Processor Improved Melee Analysis Suite Hackware Hacking Suite Protection Light Armor Plating Weapon Kinetic Spear Energy Gun Medium Laser Energy Cannon Heavy Particle Cannon Ballistic Gun Light Assault Rifle Ballistic Cannon Hardcell Cannon Launcher Grenade Launcher Special Weapon Remote Datajack Impact Weapon Heavy Mace Slashing Weapon Axe Piercing Weapon Kinetic Spear Special Melee Weapon Datajack Build | -11 -10 -10 -10 -9 -8 -8 -8 -7 -7 -7 -6 -6 -5 -5 -5 -4 -4 -4 ------- Run | Yrd Mat Min Exi Min Mat Gar Mat Fac Low Low Fac Gar Fac Gar Fac Fac Ext Cet Slots Evolved 12 | . . . . . 4 . . 2 . . 2 . 2 . . 2 . . Power 1 | . . . . . . . . . . . 1 . . . . . . . Propulsion 4 | . . . . . 2 . . 1 . . . . . . . 1 . . Utility 6 | . . . . . 2 . . 1 . . 1 . 2 . . . . . Weapon 1 | . . . . . . . . . . . . . . . . 1 . . Parts Attached 408 | 1 16 4 2 7 56 15 15 15 4 7 51 52 37 9 23 18 68 8 Power 64 | . 2 1 . . 4 2 1 3 1 2 10 16 4 . 2 2 14 . Engine 24 | . 2 1 . . 1 1 1 3 . 1 4 10 . . . . . . Core 27 | . . . . . 3 1 . . 1 1 5 4 3 . 2 2 5 . Reactor 13 | . . . . . . . . . . . 1 2 1 . . . 9 . Propulsion 117 | . 4 1 . 1 12 1 3 3 1 . 18 11 13 3 5 8 29 4 Treads 23 | . 4 1 . 1 7 . . . . . 4 3 2 1 . . . . Leg 41 | . . . . . . . 1 1 1 . 7 7 . . . 2 18 4 Wheel 2 | . . . . . . . . . . . . . 2 . . . . . Hover 48 | . . . . . 5 1 2 2 . . 7 1 9 2 5 6 8 . Flight 3 | . . . . . . . . . . . . . . . . . 3 . Utility 125 | . 3 1 . . 23 3 8 6 1 4 18 14 13 3 6 7 14 1 Device 47 | . 1 . . . 6 1 4 . 1 1 7 5 6 1 4 5 5 . Storage 9 | . 1 . . . 2 . . 1 . . 1 . 1 . 1 . 2 . Processor 14 | . . . . . 2 . . 1 . 1 2 1 2 . 1 2 2 . Hackware 18 | . . . . . 1 1 3 2 . 1 . 5 1 2 . . 2 . Protection 37 | . 1 1 . . 12 1 1 2 . 1 8 3 3 . . . 3 1 Artifact . | . . . . . . . . . . . . . . . . . . . Weapon 102 | 1 7 1 2 6 17 9 3 3 1 1 5 11 7 3 10 1 11 3 Energy Gun 5 | 1 3 1 . . . . . . . . . . . . . . . . Energy Cannon 9 | . . . . . 7 . . . . . . 2 . . . . . . Ballistic Gun 5 | . . . . . 2 . . . . . . . 1 . 2 . . . Ballistic Cannon 14 | . 1 . . . 3 . . . . . . 2 2 1 5 . . . Launcher 18 | . 3 . 1 4 2 5 1 . . . 1 . . . . . 1 . Special Weapon 13 | . . . 1 . . . . 1 . . 1 3 2 2 . . 2 1 Impact Weapon 4 | . . . . . . . . . 1 . . . 2 . . . 1 . Slashing Weapon 26 | . . . . 2 3 4 1 2 . 1 3 4 . . . . 5 1 Piercing Weapon 7 | . . . . . . . . . . . . . . . 3 1 2 1 Special Melee Weapon 1 | . . . . . . . 1 . . . . . . . . . . . Unidentified Prototypes 16 | . . . 1 . 3 . 1 . . . 4 1 2 . 3 . 1 . Corrupted Parts 6 | . . . . . . 1 . . . . 1 2 . . . . 2 . System Corruption 31 | . . . . . . 8 . . . . 5 2 . . . . 16 . Parts Lost 121 | . . 3 . 1 3 3 5 8 . 3 21 16 9 2 2 7 26 12 Power 20 | . . 1 . . 1 1 1 2 . . 4 3 1 . . 1 3 2 Propulsion 45 | . . 1 . 1 . . 1 . . . 7 6 4 2 1 5 12 5 Utility 42 | . . 1 . . 1 1 2 4 . 3 7 5 4 . 1 1 9 3 Weapon 14 | . . . . . 1 1 1 2 . . 3 2 . . . . 2 2 Highest Loss Streak 13 | . . 3 . 1 2 1 2 3 . 1 5 8 4 2 1 3 13 6 To Critical Strikes 1 | . . . . . . . . . . . . . . . . . 1 . Average Slot Usage (%) 88 | . 97 100 99 100 98 97 95 81 76 79 81 89 77 97 98 85 85 70 Engine 4 | . 14 14 14 14 2 7 1 6 . 3 3 4 . . . . . . Core 4 | . . . . . 6 1 7 . 7 3 5 4 1 11 11 10 6 4 Reactor 1 | . . . . . . . . . . . . 3 8 . . . 3 . Treads 11 | . 25 28 28 28 33 . . . . . 4 4 10 . 2 . . . Leg 8 | . 2 . . . . . . 15 19 23 16 15 . . . 3 11 17 Hover 6 | . . . . . 1 36 33 7 3 . 1 7 3 25 24 14 11 . Device 7 | . 8 . . . 5 9 6 2 7 4 7 9 14 19 21 13 9 . Storage 7 | . 14 14 14 14 9 9 9 7 7 7 6 3 2 5 5 5 1 5 Processor 6 | . . . . . . 9 4 3 . 6 5 7 6 17 18 21 19 21 Hackware 6 | . . . . . 3 . 13 14 15 8 9 14 6 2 . . 2 4 Protection 6 | . 3 14 14 14 17 7 2 5 . 4 7 1 5 . . . . 4 Energy Gun 2 | . 15 13 14 14 . . . . . . . . . . . . . . Ballistic Cannon 1 | . 3 . . . 6 . . . . . . 1 3 3 3 . . . Launcher 2 | . 2 14 13 11 . 8 . . . . . . . . . . . . Impact Weapon 1 | . . . . . . . . . 7 7 3 . 4 5 3 . . . Slashing Weapon 4 | . . . . 2 2 9 10 14 7 7 4 8 . . . . 3 6 Piercing Weapon 1 | . . . . . . . . . . . . . . . 3 15 10 1 Peak Build Rating 114 | 6 11 10 19 14 41 42 43 51 47 54 82 91 108 96 96 108 114 114 Average Rating 50 | 6 9 9 10 11 27 38 39 49 46 50 54 72 87 90 91 90 94 78 On Entrance 51 | 6 6 9 10 11 12 41 39 34 37 47 54 82 91 96 90 90 108 114 Naked Turns . | . . . . . . . . . . . . . . . . . . . Heaviest Build 103 | 13 54 54 58 53 75 42 41 48 35 44 61 73 103 63 55 56 72 71 Greatest Support 148 | 20 40 40 40 40 80 36 36 60 80 80 80 140 148 66 69 68 135 95 Greatest Overweight (x) 34 | . 2 1 1 1 2 1 1 1 . . 1 1 34 1 1 2 2 1 Average Overweight (x) . | . . 1 1 1 . . . . . . . . 1 . . . . . Largest Inventory Capacity 20 | 8 20 20 20 20 20 15 15 15 15 15 15 15 15 15 15 15 15 15 Average Capacity 15 | 8 19 20 20 20 19 15 15 15 15 15 15 10 10 15 15 15 7 15 Most Carried 20 | 6 20 20 20 20 20 15 15 15 14 15 15 15 15 15 15 15 15 15 Average Carried 13 | 6 15 19 19 19 19 14 14 14 13 14 13 9 7 14 14 12 7 10 Final Capacity 20 | 8 20 20 20 20 15 15 15 15 15 15 15 15 15 15 15 15 15 15 Final Carried 20 | 6 20 20 20 20 15 15 14 15 14 15 13 13 15 15 14 13 15 8 Class Distribution -------------------- 37% | Mutant 21% | Scavenger-Mutant 12% | Scavenger-Gladiator 9% | Hacker-Gladiator 8% | Gladiator 7% | Hacker-Mutant Dominant Class ---------------- Mutant | -10/Materials Mutant | -10/Mines Mutant | -10/Exiles Mutant | -9/Mines Mutant | -8/Materials Scavenger-Mutant | -8/Garrison Mutant | -8/Materials Hacker-Gladiator | -7/Factory Hacker-Mutant | -7/Lower Caves Gladiator | -7/Lower Caves Hacker-Gladiator | -6/Factory Scavenger-Mutant | -6/Garrison Scavenger-Mutant | -5/Factory Scavenger-Mutant | -5/Garrison Scavenger-Mutant | -5/Factory Scavenger-Gladiator | -4/Factory Scavenger-Gladiator | -4/Extension Scavenger-Mutant | -4/Cetus Resources | -11 -10 -10 -10 -9 -8 -8 -8 -7 -7 -7 -6 -6 -5 -5 -5 -4 -4 -4 ----------- Run | Yrd Mat Min Exi Min Mat Gar Mat Fac Low Low Fac Gar Fac Gar Fac Fac Ext Cet Matter Collected 7068 | 186 292 113 20 20 1186 555 190 181 113 171 476 877 1131 341 326 94 796 . Remotely 835 | . . . . . 253 555 27 . . . . . . . . . . . Salvage Created 11729 | . 348 31 . 53 958 1080 418 805 488 621 1160 840 1440 325 871 366 1820 105 Parts 467 | . 41 . . 2 46 45 18 39 10 18 34 36 45 8 23 27 70 5 Haulers Intercepted 18 | . 2 . . . 5 . 3 1 . . . . 1 . 3 . 3 . Recyclers Shooed 12 | . 2 . . . 2 . . . . . 1 . 6 . 1 . . . Parts Field Recycled . | . . . . . . . . . . . . . . . . . . . Retrieved Matter . | . . . . . . . . . . . . . . . . . . . Parts Self-Destructed 20 | . . . . . . . . . 5 15 . . . . . . . . Prevented 1 | . . . . . . . . . 1 . . . . . . . . . Kills | -11 -10 -10 -10 -9 -8 -8 -8 -7 -7 -7 -6 -6 -5 -5 -5 -4 -4 -4 ------- Run | Yrd Mat Min Exi Min Mat Gar Mat Fac Low Low Fac Gar Fac Gar Fac Fac Ext Cet Combat Hostiles Destroyed 190 | . 10 15 . 3 21 26 5 12 5 9 16 10 20 4 4 5 20 5 Melee 97 | . . . . . . 12 5 12 5 7 15 7 3 . 4 5 20 2 Guns 7 | . 4 . . 1 . . . . . . . . 2 . . . . . Cannons 40 | . . . . . 19 . . . . . . 3 15 3 . . . . AOE 42 | . 6 15 . 2 2 14 . . . . . . . . . . . 3 Classes Destroyed 19 | . 6 1 . . 4 . . 4 1 . . 1 1 . . 1 . . Worker 6 | . 2 . . . . . . 1 . . . . 2 . 1 . . . Builder 5 | . . . . . 2 . . 1 . . . . 1 . . 1 . . Tunneler 1 | . . . . . . . . . . . . . . . . 1 . . Hauler 18 | . 2 . . . 5 . 3 1 . . . . 1 . 3 . 3 . Recycler 9 | . . . . . 1 . . . . . 2 . 3 . 3 . . . Mechanic 1 | . . . . . . . . 1 . . . . . . . . . . Operator 8 | . 1 . . . 2 . 1 1 . . . . . . . . 3 . Watcher 7 | . 2 . . . 2 . . 1 . . . . 1 . . . . 1 Swarmer 24 | . 8 . . . 3 7 . . . 3 . . . 3 . . . . Grunt 92 | . 2 . . 2 10 16 4 5 4 4 9 7 11 . 4 3 11 . Brawler 3 | . . . . . . . . . . . . . 2 . . . 1 . Protector 1 | . . . . . . . . 1 . . . . . . . . . . Sentry 23 | . . . . . 6 1 1 . . 1 5 . 2 1 . . 6 . Specialist 2 | . . . . . . . . 2 . . . . . . . . . . Hunter 12 | . . . . . 2 2 . 2 1 1 . 2 . . . . 2 . Programmer 11 | . . . . . . . . 2 . . 2 . 5 . . 2 . . Behemoth 1 | . . . . . . . . . . . . 1 . . . . . . Cetus Guard 5 | . . . . . . . . . . . . . . . . . . 5 Decomposer 3 | . . . . . . . . . . 3 . . . . . . . . Samaritan 3 | . . . . . . . . . 2 1 . . . . . . . . Assembled 16 | . . 15 . 1 . . . . . . . . . . . . . . Best Kill Streak 15 | . 4 15 . 2 8 6 3 4 3 4 3 3 4 3 5 2 4 4 Combat Bots Only 15 | . 3 15 . 2 5 6 2 2 3 4 3 3 3 3 2 2 4 3 Max Kills in Single Turn 4 | . 2 4 . 1 3 3 1 1 1 1 1 1 1 1 1 1 1 1 Gunslinging . | . . . . . . . . . . . . . . . . . . . Exploded 4 | . 2 4 . 1 2 3 . . . . . . . . . . . 1 Melee 1 | . . . . . . 1 1 1 1 1 1 1 1 . 1 1 1 1 Uniques/NPCs Destroyed . | . . . . . . . . . . . . . . . . . . . Combat | -11 -10 -10 -10 -9 -8 -8 -8 -7 -7 -7 -6 -6 -5 -5 -5 -4 -4 -4 -------- Run | Yrd Mat Min Exi Min Mat Gar Mat Fac Low Low Fac Gar Fac Gar Fac Fac Ext Cet Hostile Shots Fired 1848 | . 60 35 . 9 94 74 41 165 19 109 395 196 216 52 15 47 227 94 Missed 553 | . 16 12 . 2 27 18 10 62 3 32 116 47 77 17 5 13 65 31 Damage Taken 22064 | . 530 607 . 80 1174 871 519 1786 179 714 3469 2412 2882 676 186 771 3496 1712 Core 3513 | . 120 110 . . 94 249 112 247 67 123 439 330 322 84 57 231 623 305 Absorbed by Shields 1166 | . . . . . . 5 . . 69 279 270 159 . . . 238 146 . Redirected to Shielding 107 | . . . . . . 107 . . . . . . . . . . . . Regen/Repaired (Parts) 944 | . 87 . . . 204 . . . . . 653 . . . . . . . Core Remaining (%) 37 | 100 . . . 8 . . 17 . . 37 . 9 . . 53 . . . Volleys Fired 366 | . 46 12 . 6 91 15 . . . . 1 28 128 21 7 . . 11 Largest 2 | . 2 2 . 2 2 2 . . . . 1 1 1 1 1 . . 1 Hottest 119 | . 115 65 . 80 119 72 . . . . . 113 65 65 65 . . 46 Shots Fired 479 | . 83 14 . 10 154 23 . . . . 1 28 128 21 7 . . 10 Gun 98 | . 75 4 . 6 . . . . . . . . 13 . . . . . Cannon 306 | . 1 2 . . 150 . . . . . . 17 112 17 7 . . . Launcher 56 | . 7 8 . 4 4 23 . . . . . . . . . . . 10 Special 19 | . . . . . . . . . . . 1 11 3 4 . . . . Kinetic 284 | . 35 2 . . 85 . . . . . . 13 125 17 7 . . . Thermal 119 | . 40 4 . 6 65 . . . . . . 4 . . . . . . Explosive 56 | . 7 8 . 4 4 23 . . . . . . . . . . . 10 Electromagnetic 1 | . 1 . . . . . . . . . . . . . . . . . Robot Hit Streak 15 | . 15 8 . 1 13 6 . . . . 7 9 13 5 5 . . 9 Robot Miss Streak 4 | . 4 4 . . 4 1 . . . . . 2 4 3 2 . . . Penetration Max 1 | . . . . . . . . . . . . . 1 . . . . . Secondary Targets . | . . . . . . . . . . . . . . . . . . . Shots Hit Robots 747 | . 43 6 . 1 111 48 34 31 19 34 91 61 92 17 29 23 88 19 Core Hits 425 | . 25 32 . 4 85 48 8 18 9 13 28 20 45 5 12 11 38 24 Critical Kills 4 | . . . . . . . . . . . 1 . 3 . . . . . Critical Parts Destroyed 6 | . 1 . . . . . . . . 1 2 . . 2 . . . . Critical Strikes 74 | . 3 . . 3 . 5 4 1 1 2 15 6 10 3 6 4 10 1 Burn 5 | . 2 . . 3 . . . . . . . . . . . . . . Destroy 2 | . 1 . . . . . . . . . . . 1 . . . . . Blast 9 | . . . . . . . . . . . . . 7 1 1 . . . Smash 8 | . . . . . . . . . . 1 3 . 2 2 . . . . Sever 38 | . . . . . . 5 4 1 1 1 12 6 . . . . 7 1 Impale 12 | . . . . . . . . . . . . . . . 5 4 3 . Melee Attacks 644 | . . . . 17 4 53 49 53 26 46 129 68 16 9 28 26 102 18 Impact 57 | . . . . . . . . . 8 7 17 . 16 9 . . . . Slashing 473 | . . . . 17 4 53 44 53 18 39 112 68 . . . . 48 17 Piercing 109 | . . . . . . . . . . . . . . . 28 26 54 1 Sneak Attacks 56 | . . . . . 1 . 6 8 2 6 8 1 3 . 8 7 6 . Combat Hostiles 17 | . . . . . . . 2 2 . 1 3 1 . . 2 5 1 . Follow-up Attacks 51 | . . . . . . . 2 . 4 5 9 4 . . 3 5 17 2 Damage Inflicted 34255 | . 715 1130 . 273 3146 3471 1345 1426 903 1604 3756 3070 3792 782 1566 1276 4177 1823 Guns 793 | . 425 13 . 64 . . . . . . . . 291 . . . . . Cannons 6591 | . 16 . . . 2626 . . . . . . 488 2874 387 200 . . . Explosions 4982 | . 274 1117 . 209 456 1749 . . . . . . 68 . . . . 1109 Melee 21882 | . . . . . 64 1722 1345 1426 903 1604 3750 2582 559 395 1366 1276 4176 714 Ramming 7 | . . . . . . . . . . . 6 . . . . . 1 . Kinetic 5896 | . 202 . . . 1533 . . . . . . 409 3165 387 200 . . . Thermal 1472 | . 223 13 . 64 1093 . . . . . . 79 . . . . . . Explosive 4902 | . 274 1117 . 209 376 1749 . . . . . . 68 . . . . 1109 Electromagnetic 96 | . 16 . . . 80 . . . . . . . . . . . . . Impact 1879 | . . . . . . . . . 167 237 521 . 559 395 . . . . Slashing 15504 | . . . . . 64 1722 1345 1426 736 1367 3229 2582 . . . . 2368 665 Piercing 4499 | . . . . . . . . . . . . . . . 1366 1276 1808 49 Highest Corruption 34 | . . . . . 7 15 18 6 6 6 15 18 3 4 4 3 34 34 Average Corruption 12 | . . . . . 7 7 15 2 6 6 9 17 1 3 4 2 31 34 Corruption Purged . | . . . . . . . . . . . . . . . . . . . Corruption Blocked . | . . . . . . . . . . . . . . . . . . . Effects 571 | . . . . . 47 34 22 17 47 46 65 109 7 7 12 2 130 26 Message Errors 134 | . . . . . 9 10 4 3 12 16 10 25 2 2 5 . 32 4 Matter Fused 144 | . . . . . 11 5 7 4 11 17 17 36 . 3 4 1 26 2 Heat Flow Errors 70 | . . . . . 6 3 3 4 4 4 9 16 2 1 . 1 16 1 Energy Discharges 66 | . . . . . 8 6 2 2 11 2 8 12 1 . . . 10 4 Parts Rejected 8 | . . . . . . 1 1 . . . 1 1 . . . . 2 2 Parts Fused 16 | . . . . . 1 1 1 . 2 1 1 2 . 1 1 . 4 1 Data Loss (minor) 74 | . . . . . 6 5 2 2 5 6 11 10 2 . 1 . 17 7 Data Loss (major) 16 | . . . . . 2 1 . . 1 . 5 . . . . . 6 1 Misfires 1 | . . . . . 1 . . . . . . . . . . . . . Alerts 19 | . . . . . 2 1 . 2 1 . 1 5 . . 1 . 4 2 Misdirections 20 | . . . . . . . 2 . . . 2 2 . . . . 13 1 Weapon Failures 3 | . . . . . 1 1 . . . . . . . . . . . 1 Overload Shots . | . . . . . . . . . . . . . . . . . . . Overflow Damage 2031 | . . . . . 42 89 83 107 153 288 245 147 122 138 331 123 146 17 Projectiles 99 | . . . . . 4 . . . . . . 7 44 28 16 . . . Explosions 87 | . . . . . 4 66 . . . . . . . . . . . 17 Melee 1845 | . . . . . 34 23 83 107 153 288 245 140 78 110 315 123 146 . Knockbacks 43 | . . . . . 19 . . . . . 1 . 15 7 1 . . . Impact 4 | . . . . . . . . . . . 1 . . 3 . . . . Kinetic 37 | . . . . . 18 . . . . . . . 15 3 1 . . . Secondary 2 | . . . . . 1 . . . . . . . . 1 . . . . Self-Inflicted Damage 100 | . 46 . . . . 54 . . . . . . . . . . . . Shots 3 | . 2 . . . . 1 . . . . . . . . . . . . Rammed 2 | . . . . . . . . . . . 1 . . . . . 1 . Targets Rammed 2 | . . . . . . . . . . . 1 . . . . . 1 . Kicked . | . . . . . . . . . . . . . . . . . . . Crushed . | . . . . . . . . . . . . . . . . . . . Highest Temperature 312 | . 197 48 . 148 279 218 262 200 250 249 259 312 264 178 90 223 226 269 Average Temperature 86 | . 61 18 . 69 98 52 97 79 116 102 87 118 72 96 30 51 85 91 Received Heat Transfer 5104 | . 153 . . 24 270 402 306 165 54 154 1084 460 831 51 108 68 803 171 Effects 7 | . . . . . . . . . 1 . 1 1 2 . . . 2 . Energy Bleed 2 | . . . . . . . . . 1 . . 1 . . . . . . Interference 5 | . . . . . . . . . . . 1 . 2 . . . 2 . Siege Activations . | . . . . . . . . . . . . . . . . . . . Robots Corrupted 6 | . . . . . . . . . . 3 1 . . 2 . . . . Combat Hostiles 4 | . . . . . . . . . . 2 1 . . 1 . . . . Parts Fried 11 | . . . . . . . . . 1 3 1 . 2 4 . . . . Impact Corruptions 17 | . . . . . . . . . 1 5 6 . 2 3 . . . . Robots Melted . | . . . . . . . . . . . . . . . . . . . Combat Hostiles . | . . . . . . . . . . . . . . . . . . . Parts Melted 5 | . 1 . . . 1 . . . . . 1 . . . . . 2 . Heat Transferred 2886 | . 777 37 . 407 1591 . . . . . . 74 . . . . . . Parts Sabotaged . | . . . . . . . . . . . . . . . . . . . Parts Stolen . | . . . . . . . . . . . . . . . . . . . Parts Stripped . | . . . . . . . . . . . . . . . . . . . Power Chain Reactions . | . . . . . . . . . . . . . . . . . . . Alert | -11 -10 -10 -10 -9 -8 -8 -8 -7 -7 -7 -6 -6 -5 -5 -5 -4 -4 -4 ------- Run | Yrd Mat Min Exi Min Mat Gar Mat Fac Low Low Fac Gar Fac Gar Fac Fac Ext Cet Peak Influence 1179 | . 232 60 . 78 290 1110 783 419 . . 183 1179 959 810 487 229 354 286 Initial 618 | . . 35 . . 27 144 520 278 . . . 25 618 587 414 165 26 160 Average 296 | . 116 29 . 41 142 858 623 271 . . 61 580 779 722 411 120 194 213 Maximum Alert Level 4 | . 1 . . . 1 4 3 2 . . . 4 3 3 2 1 1 1 Low Security (%) 48 | 100 80 100 . 100 58 3 . 19 . . 100 6 . . . 97 43 24 Level 1 25 | . 19 . . . 41 3 . 73 . . . 24 . . 18 2 56 75 Level 2 12 | . . . . . . 15 77 7 . . . 39 33 28 81 . . . Level 3 12 | . . . . . . 73 22 . . . . 23 66 71 . . . . Level 4 . | . . . . . . 4 . . . . . 5 . . . . . . Level 5 . | . . . . . . . . . . . . . . . . . . . High Security . | . . . . . . . . . . . . . . . . . . . Max Security . | . . . . . . . . . . . . . . . . . . . Squads Dispatched 46 | . 1 . . . 6 . 3 8 . . 8 . 8 . 2 3 7 . Investigation 12 | . 1 . . . 1 . 1 . . . 1 . 2 . . 1 5 . Extermination 10 | . . . . . . . . 3 . . 3 . 3 . . 1 . . Reinforcement 18 | . . . . . 5 . 1 5 . . 1 . 1 . 2 1 2 . Assault 3 | . . . . . . . 1 . . . . . 2 . . . . . Garrison 3 | . . . . . . . . . . . 3 . . . . . . . Intercept . | . . . . . . . . . . . . . . . . . . . Searches Triggered . | . . . . . . . . . . . . . . . . . . . Construction Impeded 3 | . . . . . 1 . . . . . . . 1 . . 1 . . Haulers Reinforced 2 | . . . . . . . . . . . . . . . 2 . . . Active Scanning Responses . | . . . . . . . . . . . . . . . . . . . Cargo Convoy Interrupts 2 | . . . . . . . . 1 . . 1 . . . . . . . Stealth | -11 -10 -10 -10 -9 -8 -8 -8 -7 -7 -7 -6 -6 -5 -5 -5 -4 -4 -4 --------- Run | Yrd Mat Min Exi Min Mat Gar Mat Fac Low Low Fac Gar Fac Gar Fac Fac Ext Cet Distress Signals 10 | . . . . . 1 . 1 1 . . 1 . 1 . . 1 2 2 Communications Jammed . | . . . . . . . . . . . . . . . . . . . Distress Signals . | . . . . . . . . . . . . . . . . . . . Times Spotted 380 | . 25 22 . 8 29 30 20 40 7 12 30 33 40 10 4 11 50 9 Peak Tracking Total 20 | . 3 20 . 3 6 5 5 12 4 4 3 9 7 5 1 3 6 5 Tactical Retreats 36 | . 6 1 . . 2 3 2 4 1 1 3 7 2 . . 1 3 . Traps | -11 -10 -10 -10 -9 -8 -8 -8 -7 -7 -7 -6 -6 -5 -5 -5 -4 -4 -4 ------- Run | Yrd Mat Min Exi Min Mat Gar Mat Fac Low Low Fac Gar Fac Gar Fac Fac Ext Cet Traps Triggered 38 | . 1 . . . 2 4 1 5 . . 1 9 1 3 2 5 4 . Indirectly . | . . . . . . . . . . . . . . . . . . . Trap Hack Attempts . | . . . . . . . . . . . . . . . . . . . Triggered . | . . . . . . . . . . . . . . . . . . . Disarmed . | . . . . . . . . . . . . . . . . . . . Reprogrammed . | . . . . . . . . . . . . . . . . . . . Reused . | . . . . . . . . . . . . . . . . . . . Traps Extracted . | . . . . . . . . . . . . . . . . . . . Installed . | . . . . . . . . . . . . . . . . . . . Triggered 1 | . . . . . . . . . . . 1 . . . . . . . Most Traps Carried 1 | . . . . . . . . . . . . . . 1 . . . . Machines | -11 -10 -10 -10 -9 -8 -8 -8 -7 -7 -7 -6 -6 -5 -5 -5 -4 -4 -4 ---------- Run | Yrd Mat Min Exi Min Mat Gar Mat Fac Low Low Fac Gar Fac Gar Fac Fac Ext Cet Machines Disabled 36 | . 2 . . . 8 7 . . . . . 5 5 3 . . 3 3 Max in Single Turn 2 | . 1 . . . 2 2 . . . . . 1 2 1 . . 1 1 Garrison Access 1 | . . . . . . . 1 . . . . . . . . . . . Garrison Relay 5 | . . . . . . 1 . . . . . 3 . 1 . . . . Energy Cycler 5 | . . . . . . . . . . . . . . . . . 5 . Machines Repaired . | . . . . . . . . . . . . . . . . . . . Machines Dismantled 5 | . . . . . . . . . . . . . . . . . 2 3 Machines Sabotaged . | . . . . . . . . . . . . . . . . . . . Overloaded Fab Kills . | . . . . . . . . . . . . . . . . . . . Hacking | -11 -10 -10 -10 -9 -8 -8 -8 -7 -7 -7 -6 -6 -5 -5 -5 -4 -4 -4 --------- Run | Yrd Mat Min Exi Min Mat Gar Mat Fac Low Low Fac Gar Fac Gar Fac Fac Ext Cet Machines Accessed 72 | . 9 1 2 . 14 2 7 2 . 2 8 3 4 . 1 4 11 2 Terminals 42 | . 6 1 . . 8 2 5 1 . . 1 3 . . 1 3 9 2 Fabricators 4 | . . . . . . . . . . . 1 . 2 . . 1 . . Repair Stations 5 | . 1 . . . 2 . . . . . 2 . . . . . . . Recycling Units 11 | . 2 . . . 2 . 1 1 . . 2 . 1 . . . 2 . Scanalyzers 1 | . . . . . 1 . . . . . . . . . . . . . Garrison Access 5 | . . . . . 1 . 1 . . . 2 . 1 . . . . . Total Hacks 165 | . 21 1 2 . 35 2 15 7 . 8 19 4 9 . 1 8 28 5 Successful 90 | . 11 . 2 . 15 1 10 5 . 8 11 2 7 . . 5 11 2 Failed 75 | . 10 1 . . 20 1 5 2 . . 8 2 2 . 1 3 17 3 Catastrophic 14 | . 2 . . . 4 1 . . . . . 2 . . 1 . 4 . Database Lockouts . | . . . . . . . . . . . . . . . . . . . Manual 65 | . 25 2 1 . 17 . 3 4 . . 3 . 2 . . 1 7 . Terminals 89 | . 14 1 . . 21 2 11 3 . . 2 4 . . 1 3 22 5 Fabricators 12 | . . . . . . . . . . . 3 . 4 . . 5 . . Repair Stations 16 | . 2 . . . 6 . . . . . 8 . . . . . . . Recycling Units 29 | . 5 . . . 5 . 3 4 . . 4 . 2 . . . 6 . Scanalyzers 2 | . . . . . 2 . . . . . . . . . . . . . Garrison Access 7 | . . . . . 1 . 1 . . . 2 . 3 . . . . . Terminal Hacks 47 | . 5 . 2 . 6 1 6 2 . 8 1 2 . . . 3 9 2 Record 15 | . . . 1 . . . 2 . . 7 1 . . . . . 2 2 Robot Analysis 9 | . 4 . . . 2 . 1 1 . . . . . . . . 1 . Prototype ID Bank 7 | . 1 . . . 2 . 3 . . . . . . . . . 1 . Open Door 8 | . . . . . . 1 . . . 1 . 1 . . . 1 4 . Open DSF 1 | . . . . . . . . . . . . . . . . 1 . . Level Access Points 1 | . . . . . . . . . . . . . . . . 1 . . Branch Access Points 2 | . . . . . 1 . . 1 . . . . . . . . . . Unreport Threat 1 | . . . . . 1 . . . . . . . . . . . . . Recall Investigation 1 | . . . . . . . . . . . . . . . . . 1 . Patrol Navigation 1 | . . . . . . . . . . . . 1 . . . . . . Derelict Proto ID Bank 1 | . . . 1 . . . . . . . . . . . . . . . Fabricator Hacks 6 | . . . . . . . . . . . 1 . 3 . . 2 . . Load Schematic 2 | . . . . . . . . . . . . . 1 . . 1 . . Build 4 | . . . . . . . . . . . 1 . 2 . . 1 . . Repair Station Hacks 10 | . 2 . . . 4 . . . . . 4 . . . . . . . Scan Component 6 | . 1 . . . 2 . . . . . 3 . . . . . . . Repair 4 | . 1 . . . 2 . . . . . 1 . . . . . . . Recycling Unit Hacks 3 | . . . . . . . 1 1 . . 1 . . . . . . . Retrieve Components 3 | . . . . . . . 1 1 . . 1 . . . . . . . Scanalyzer 2 | . . . . . 2 . . . . . . . . . . . . . Insert Component 1 | . . . . . 1 . . . . . . . . . . . . . Analyze 1 | . . . . . 1 . . . . . . . . . . . . . Garrison Access Hacks 7 | . . . . . 1 . 1 . . . 2 . 3 . . . . . Unlock Access 4 | . . . . . 1 . . . . . 2 . 1 . . . . . Seal Access 1 | . . . . . . . 1 . . . . . . . . . . . Coupler Status 2 | . . . . . . . . . . . . . 2 . . . . . Unauthorized Hacks 15 | . 4 . . . 2 . 2 2 . . 2 . 1 . . . 2 . Terminals . | . . . . . . . . . . . . . . . . . . . Fabricators . | . . . . . . . . . . . . . . . . . . . Repair Stations . | . . . . . . . . . . . . . . . . . . . Recycling Units 15 | . 4 . . . 2 . 2 2 . . 2 . 1 . . . 2 . Reject 7 | . 2 . . . 1 . 1 1 . . 1 . . . . . 1 . Mask 8 | . 2 . . . 1 . 1 1 . . 1 . 1 . . . 1 . Scanalyzers . | . . . . . . . . . . . . . . . . . . . Garrison Access . | . . . . . . . . . . . . . . . . . . . Data Cores Recovered 2 | . 1 . . . . . . . . . . . . . . . 1 . Used 1 | . . . . . . . . . . . . . . . . . 1 . Hacking Detections 57 | . 8 1 . . 12 2 6 2 . . 7 2 4 . 1 2 8 2 Full Trace Events 10 | . . . . . 2 . . . . . 1 1 2 . . 1 3 . Feedback Events 1 | . . . . . . . . . . . . 1 . . . . . . Corruption 1 | . . . . . . . . . . . . 1 . . . . . . Feedback Blocked . | . . . . . . . . . . . . . . . . . . . Robot Schematics Acquired . | . . . . . . . . . . . . . . . . . . . Robots Built 4 | . . . . . . . . . . . . . 4 . . . . . Authchips . | . . . . . . . . . . . . . . . . . . . Time 40 | . . . . . . . . . . . . . 40 . . . . . Total Robot Build Rating 4 | . . . . . . . . . . . . . 4 . . . . . Part Schematics Acquired 1 | . . . . . 1 . . . . . . . . . . . . . Parts Built 6 | . . . . . . . . . . . 2 . 2 . . 2 . . Authchips . | . . . . . . . . . . . . . . . . . . . Time 200 | . . . . . . . . . . . 58 . 47 . . 95 . . Total Part Build Rating 34 | . . . . . . . . . . . 14 . 10 . . 10 . . Parts Repaired 4 | . 1 . . . 2 . . . . . 1 . . . . . . . Time 134 | . 26 . . . 64 . . . . . 44 . . . . . . . Parts Recycled . | . . . . . . . . . . . . . . . . . . . Recycled Matter . | . . . . . . . . . . . . . . . . . . . Retrieved Matter . | . . . . . . . . . . . . . . . . . . . Retrieved Components 19 | . . . . . . . 9 . . . 10 . . . . . . . Parts Scanalyzed 1 | . . . . . 1 . . . . . . . . . . . . . Part Schematics Acquired 1 | . . . . . 1 . . . . . . . . . . . . . Parts Damaged . | . . . . . . . . . . . . . . . . . . . Bothacking | -11 -10 -10 -10 -9 -8 -8 -8 -7 -7 -7 -6 -6 -5 -5 -5 -4 -4 -4 ------------ Run | Yrd Mat Min Exi Min Mat Gar Mat Fac Low Low Fac Gar Fac Gar Fac Fac Ext Cet Used RIF Installer 2 | . . . . . . 1 . . . . . . . 1 . . . . Threat Obfuscator 1 | . . . . . . . . . . . . . . 1 . . . . Robots Hacked 10 | . . . . . . . 1 . . . . 4 2 3 . . . . Non-combat . | . . . . . . . . . . . . . . . . . . . Combat 10 | . . . . . . . 1 . . . . 4 2 3 . . . . Robot Hacks Applied 12 | . . . . . . . 3 . . . . 4 2 3 . . . . show_paths 1 | . . . . . . . 1 . . . . . . . . . . . reboot_system 1 | . . . . . . . 1 . . . . . . . . . . . overwrite_iff 1 | . . . . . . . . . . . . 1 . . . . . . formatsys_high 9 | . . . . . . . 1 . . . . 3 2 3 . . . . Relay Couplers Released 19 | . . . . . . 5 . . . . . 11 . 3 . . . . Machine Destruction 19 | . . . . . . 5 . . . . . 11 . 3 . . . . Attached 9 | . . . . . . . 1 . . . . 5 1 2 . . . . Fabnet Peak Effective % . | . . . . . . . . . . . . . . . . . . . Robots Rewired 26 | . . . . . . 6 . . . . . 7 . . . . 13 . Allies Hacked 1 | . . . . . . . . 1 . . . . . . . . . . Hacks Repelled . | . . . . . . . . . . . . . . . . . . . Allies | -11 -10 -10 -10 -9 -8 -8 -8 -7 -7 -7 -6 -6 -5 -5 -5 -4 -4 -4 -------- Run | Yrd Mat Min Exi Min Mat Gar Mat Fac Low Low Fac Gar Fac Gar Fac Fac Ext Cet Total Allies 60 | . . 4 . . . 6 1 3 . 2 1 18 6 3 . . 16 . Largest Group 9 | . . 4 2 2 . 5 2 3 . 2 1 5 5 2 2 . 9 . Highest-Rated Group 390 | . . 71 32 32 . 71 40 93 . 56 37 252 174 70 70 . 390 . Highest-Rated Ally 116 | . . 31 16 16 . 31 29 31 . 31 37 116 116 41 41 . 51 . Total Orders 9 | . . . . . . . . . . . . 2 4 2 . 1 . . STAY 2 | . . . . . . . . . . . . 1 . 1 . . . . ROAM 4 | . . . . . . . . . . . . . 4 . . . . . FOLLOW 2 | . . . . . . . . . . . . 1 . 1 . . . . EXPLORE 1 | . . . . . . . . . . . . . . . . 1 . . Ally Attacks 454 | . . 35 . 11 . 34 24 25 . . 2 85 18 16 1 . 203 . Total Damage 10539 | . . 350 . 108 . 514 343 449 . . 50 2959 929 667 23 . 4147 . Kills 68 | . . 4 . 4 . 4 4 3 . . 1 18 3 3 . . 24 . Allies Corrupted 3 | . . . . . . 1 . 1 . . . . . . . . 1 . Allies Melted 3 | . . . . . . . . . . . . 1 1 . . . 1 . Field Lobotomies 5 | . . . . . . . . . . . 1 4 . . . . . . Intel | -11 -10 -10 -10 -9 -8 -8 -8 -7 -7 -7 -6 -6 -5 -5 -5 -4 -4 -4 ------- Run | Yrd Mat Min Exi Min Mat Gar Mat Fac Low Low Fac Gar Fac Gar Fac Fac Ext Cet Robot Analysis Total 9 | . 4 . . . 2 . 1 1 . . . . . . . . 1 . Derelict Logs Recovered 6 | . . 3 . . . . . . 2 1 . . . . . . . . Drone Launches 2 | . . . . . . . . . . . . . . . . 2 . . Drone Recoveries 2 | . . . . . . . . . . . . . . . . 2 . . Exploration | -11 -10 -10 -10 -9 -8 -8 -8 -7 -7 -7 -6 -6 -5 -5 -5 -4 -4 -4 ------------- Run | Yrd Mat Min Exi Min Mat Gar Mat Fac Low Low Fac Gar Fac Gar Fac Fac Ext Cet Turns Passed 26424 | 2 2105 1534 591 764 3637 1139 559 1510 1629 1919 2139 2546 1657 306 489 699 2689 510 Spaces Moved 15044 | 1 816 605 245 253 1957 945 474 780 1132 1347 982 1482 808 308 464 337 1807 301 Core 4 | . . . . . . . . . . . . . 4 . . . . . Treads 4748 | . 704 605 245 253 1789 . . . . . 418 323 411 . . . . . Legs 5517 | 1 112 . . . . . 3 778 1132 1347 535 907 . . . 35 379 288 Wheels 172 | . . . . . . . . . . . . . 172 . . . . . Hover 4197 | . . . . . 168 945 471 2 . . 29 252 221 308 464 302 1035 . Flight 406 | . . . . . . . . . . . . . . . . . 393 13 Fastest Speed 38 | 120 120 240 240 240 45 45 45 135 133 133 94 38 44 48 53 47 47 114 Average Speed 137 | 120 228 240 240 240 152 81 64 139 136 133 143 127 144 60 69 103 111 120 Slowest Speed 1750 | 120 260 240 240 240 320 107 250 140 140 133 240 190 1750 132 167 260 196 190 Overloaded Moves . | . . . . . . . . . . . . . . . . . . . Propulsion Burnouts . | . . . . . . . . . . . . . . . . . . . Robots Hopped . | . . . . . . . . . . . . . . . . . . . Cave-ins Triggered 2 | . . . . . 1 . . . . . 1 . . . . . . . Exploration Rate (%) 57 | 2 98 98 61 52 98 74 42 17 98 94 18 72 17 35 14 10 98 91 Regions Visited 18 Branch Regions 7 Pre-discovered Areas 3 | . . 1 1 . . . . . 1 . . . . . . . . . Known Exits Taken 4 | . . . . . 1 . . 1 . . 1 . 1 . . . . . Unknown Exits Taken 11 | 1 1 1 1 1 . . 1 . 1 1 . . . . 1 1 1 . Scrap Searched 9 | . . 1 . 2 . . . . 2 4 . . . . . . . . Spaces Dug 30 | . . . . . 3 7 . 3 . . 14 . 2 . . . 1 . Terrain Destroyed 430 | . 10 48 . 37 62 101 . 3 . . 14 2 48 5 2 . 1 97 Melee 22 | . . . . . 3 . . 3 . . 14 . 1 . . . 1 . Projectile 64 | . . . . . 21 . . . . . . 2 34 5 2 . . . AOE 344 | . 10 48 . 37 38 101 . . . . . . 13 . . . . 97 Terrain Rammed . | . . . . . . . . . . . . . . . . . . . Walls Destroyed . | . . . . . . . . . . . . . . . . . . . Machines Disabled . | . . . . . . . . . . . . . . . . . . . Actions | -11 -10 -10 -10 -9 -8 -8 -8 -7 -7 -7 -6 -6 -5 -5 -5 -4 -4 -4 --------- Run | Yrd Mat Min Exi Min Mat Gar Mat Fac Low Low Fac Gar Fac Gar Fac Fac Ext Cet Total 19421 | 1 984 675 249 382 2458 1225 686 1125 1184 1418 1538 2004 1142 391 587 647 2345 380 Wait 2220 | . 66 44 . 98 268 102 136 268 29 21 358 228 109 32 36 218 195 12 Move 15025 | . 815 604 244 252 1956 944 473 779 1131 1346 981 1480 808 306 463 336 1806 301 Hop . | . . . . . . . . . . . . . . . . . . . Pick Up 171 | . 25 7 . 1 31 3 4 11 2 3 7 13 27 4 8 4 21 . Fast Attach 161 | . 2 . 2 . 23 4 4 2 . 1 29 21 10 2 16 9 35 1 Attach 81 | . . 3 . 1 10 2 4 8 3 3 7 8 14 2 1 5 4 6 Detach 17 | . . . 1 . 1 . 3 2 . . 1 1 3 . . . 5 . Swap 168 | 1 14 1 . 6 24 9 7 5 1 3 15 23 13 5 7 4 29 1 Drop 217 | . 16 4 2 1 50 3 8 5 . 2 19 23 14 2 25 5 38 . Fire 366 | . 46 12 . 6 91 15 . . . . 1 28 128 21 7 . . 11 Melee 569 | . . . . 17 4 53 47 45 18 39 118 61 16 9 24 21 81 16 Ram 2 | . . . . . . . . . . . 1 . . . . . 1 . Kick . | . . . . . . . . . . . . . . . . . . . Crush 1 | . . . . . . . . . . . 1 . . . . . . . Escape Stasis 163 | . . . . . . 51 . . . . . 58 . 8 . 45 1 . Rewire 222 | . . . . . . 39 . . . . . 60 . . . . 123 . Trap . | . . . . . . . . . . . . . . . . . . . Miscellaneous 38 | . . . . . . . . . . . . . . . . . 6 32 Route ------- -11/Scrapyard -10/Materials (discovered 5 exits: [*Mat x3] / *Min / [*Sub]) -10/Mines (discovered 3 exits: [*Mat x2] / *Exi) -10/Exiles (discovered 2 exits: [*Min x2]) -9/Mines -8/Materials (discovered 4 exits: *Fac x3 / Gar) -8/Garrison (discovered 4 exits: *Fac x3 / *Mat) -8/Materials -7/Factory (discovered 3 exits: Sto / *Low x2) -7/Lower Caves -7/Lower Caves -6/Factory (discovered 4 exits: Fac / [*Low] / Gar / Gar) -6/Garrison (discovered 3 exits: *Fac x3) -5/Factory (discovered 2 exits: *Fac / Gar) -5/Garrison -5/Factory -4/Factory (discovered 5 exits: Res x4 / *Ext) -4/Extension (discovered 3 exits: *Res x2 / *Cet) -4/Cetus (discovered 2 exits: *Res / [*Arc]) History --------- Turn | Location | Event 3 | -11/Scrapyard | Discovered new exit (range 0) 3 | -11/Scrapyard | Entered Materials 302 | -10/Materials | Build established: Mutant 401 | -10/Materials | Discovered new exit (range 9) 659 | -10/Materials | Discovered new exit (range 12) 849 | -10/Materials | Repaired Lgt. Treads 983 | -10/Materials | Discovered new exit (range 8) 1003 | -10/Materials | Derelicts attacked the area 1729 | -10/Materials | Discovered new exit (range 15) 1989 | -10/Materials | Discovered new exit (range 10) 2108 | -10/Materials | Entered Mines 2133 | -10/Mines | Assembled infested the area 2139 | -10/Mines | Core integrity fell below 50% 2168 | -10/Mines | Destroyed 15 combat bots 2173 | -10/Mines | Met 8R-AWN 2174 | -10/Mines | Core integrity fell below 20% 2204 | -10/Mines | Lost 3 parts (1p1n1u) 2292 | -10/Mines | Learned location of Mines (-9) 2316 | -10/Mines | Assisted by bots powering up and referring to "LRC-V3" 2416 | -10/Mines | Found a hidden stash of uninstalled traps 2481 | -10/Mines | Discovered new exit (range 5) 2599 | -10/Mines | A weapon hastily lodged in a ceiling crevice suddenly fell to the ground 2721 | -10/Mines | Received a Mining Laser from a helpful Derelict 2931 | -10/Mines | Learned Materials terminal intel 2943 | -10/Mines | Discovered new exit (range 12) 3198 | -10/Mines | Learned Materials stockpile data 3198 | -10/Mines | Discovered new exit (range 6) 3642 | -10/Mines | Entered Exiles 3642 | -10/Exiles | Accompanied by 2 allies 3688 | -10/Exiles | Discovered new exit (range 14) 3753 | -10/Exiles | Welcomed by 8R-AWN 3794 | -10/Exiles | Met EX-HEX 3866 | -10/Exiles | Met EX-BIN 3897 | -10/Exiles | Aligned with FarCom system 3899 | -10/Exiles | Given EX-Vault access code 3954 | -10/Exiles | Opened EX-Vault 3962 | -10/Exiles | Found Prototype Special Weapon 3962 | -10/Exiles | Identified Field Lobotomy Kit 4017 | -10/Exiles | Warned to stay clear of 0b10 Research branches 4084 | -10/Exiles | Met EX-DEC 4096 | -10/Exiles | Learned location of Zion (-7) 4199 | -10/Exiles | Discovered new exit (range 14) 4233 | -10/Exiles | Left Exiles lab with Field Lobotomy Kit 4233 | -10/Exiles | Entered Mines 4233 | -9/Mines | Accompanied by 2 allies 4609 | -9/Mines | Excavation squad dispatched 4609 | -9/Mines | A large section of the Mines collapsed 4801 | -9/Mines | Received a Rocket Launcher from a helpful Derelict 4859 | -9/Mines | Excavation squad dispatched 4945 | -9/Mines | Discovered new exit (range 16) 4997 | -9/Mines | Entered Materials 4997 | -8/Materials | Evolved 4 slots: Propulsion x2, Utility x2 4999 | -8/Materials | Loaded intel: 12 terminal locations 5039 | -8/Materials | Repaired Lgt. Treads? 5358 | -8/Materials | Met 7R-MNS 5689 | -8/Materials | Discovered new exit (range 15) 6059 | -8/Materials | Repaired Imp. Light Armor Plating 6203 | -8/Materials | Discovered new exit (range 11) 6917 | -8/Materials | Discovered new exit (range 5) 7025 | -8/Materials | Crushed by falling debris 7744 | -8/Materials | Identified exit to Garrison 8634 | -8/Materials | Entered Garrison 8650 | -8/Garrison | Triggered checkpoint 8706 | -8/Garrison | Triggered checkpoint 8815 | -8/Garrison | Garrison Relay disabled 8856 | -8/Garrison | Installed Relay Interface Framework 8859 | -8/Garrison | Discovered new exit (range 12) 8881 | -8/Garrison | Triggered checkpoint 8910 | -8/Garrison | Triggered checkpoint 9060 | -8/Garrison | Triggered checkpoint 9116 | -8/Garrison | Discovered new exit (range 13) 9225 | -8/Garrison | Discovered new exit (range 10) 9255 | -8/Garrison | Core integrity fell below 50% 9322 | -8/Garrison | Triggered checkpoint 9322 | -8/Garrison | Build established: Scavenger-Mutant 9426 | -8/Garrison | Triggered checkpoint 9481 | -8/Garrison | Discovered new exit (range 7) 9570 | -8/Garrison | Triggered checkpoint 9695 | -8/Garrison | Lost 3 allies 9772 | -8/Garrison | System corruption reached 10% 9773 | -8/Garrison | Entered Materials 9773 | -8/Materials | Accompanied by 2 allies 10173 | -8/Materials | First assault squad dispatched 10220 | -8/Materials | Discovered new exit (range 12) 10227 | -8/Materials | Core integrity fell below 20% 10332 | -8/Materials | Entered Factory 10332 | -7/Factory | Evolved 2 slots: Propulsion x1, Utility x1 10486 | -7/Factory | Discovered new exit (range 9) 10519 | -7/Factory | Identified exit to Storage 10519 | -7/Factory | Identified exit to Lower Caves 10690 | -7/Factory | Build established: Hacker-Gladiator 11671 | -7/Factory | Allied Derelicts emerged from ambush trap array 11721 | -7/Factory | Cargo convoy interrupted 11842 | -7/Factory | Entered Lower Caves 11864 | -7/Lower Caves | Lost 3 parts (1p1u1w) 12093 | -7/Lower Caves | Build established: Hacker-Mutant 12601 | -7/Lower Caves | Learned 4 Factory zone layouts 12633 | -7/Lower Caves | Learned location of Extension (-4) 12851 | -7/Lower Caves | Discovered new exit (range 8) 13471 | -7/Lower Caves | Entered another Lower Caves area 13582 | -7/Lower Caves | Encountered a Warlord checkpoint 13717 | -7/Lower Caves | Discovered new exit (range 8) 13825 | -7/Lower Caves | Build established: Gladiator 13888 | -7/Lower Caves | Learned Factory emergency access door positions 14042 | -7/Lower Caves | Core integrity fell below 50% 14128 | -7/Lower Caves | Attracted the attention of an 0b10 checkpoint 14893 | -7/Lower Caves | A Commander dispatched an escort 14913 | -7/Lower Caves | Learned location of 1 exit from Factory 14913 | -7/Lower Caves | Learned Extension emergency access door positions 14913 | -7/Lower Caves | Learned Research security intel 14913 | -7/Lower Caves | Learned Extension security intel 14913 | -7/Lower Caves | Learned Research garrison access intel 15390 | -7/Lower Caves | Entered Factory 15390 | -6/Factory | Accompanied by 1 ally 15390 | -6/Factory | Evolved 2 slots: Power x1, Utility x1 15391 | -6/Factory | Commander's escort returned to base 15391 | -6/Factory | Identified exit to Factory 15457 | -6/Factory | Build established: Hacker-Gladiator 15695 | -6/Factory | Repaired Lgt. Armored Exoskeleton 15827 | -6/Factory | Lost 5 parts (2p2n1u) 16372 | -6/Factory | Fabricated Quantum Capacitor (x2) 16408 | -6/Factory | Identified exit to Garrison 16504 | -6/Factory | Garrison activated, responded to threat 16575 | -6/Factory | Lost 5 parts (2n2u1w) 16829 | -6/Factory | Build established: Mutant 16855 | -6/Factory | Crushed by falling debris 16855 | -6/Factory | System corruption reached 10% 16886 | -6/Factory | Lost 3 parts (1p1u1w) 17032 | -6/Factory | Discovered new exit (range 7) 17046 | -6/Factory | Identified exit to Garrison 17357 | -6/Factory | Core integrity fell below 50% 17372 | -6/Factory | Assimilated P-60 Hacker with FLK Orb 17433 | -6/Factory | Cargo convoy interrupted 17492 | -6/Factory | Lost 4 allies 17493 | -6/Factory | Found Prototype Launcher 17493 | -6/Factory | Identified Tesla Bomb Launcher 17529 | -6/Factory | Entered Garrison 17529 | -6/Garrison | Accompanied by 1 ally 17545 | -6/Garrison | Triggered checkpoint 17568 | -6/Garrison | Assimilated Y-54 Guardian with FLK Orb 17597 | -6/Garrison | Lost 3 parts (1p1n1u) 17609 | -6/Garrison | Garrison Relay disabled 17629 | -6/Garrison | Triggered checkpoint 17644 | -6/Garrison | Rescued a captive Derelict 17687 | -6/Garrison | Found embedded Infiltrators 17842 | -6/Garrison | Lost 7 allies 17855 | -6/Garrison | Assimilated G-50 Soldier with FLK Orb 17859 | -6/Garrison | Assimilated G-50 Soldier with FLK Orb 17868 | -6/Garrison | Assimilated H-66 Slayer with FLK Orb 17873 | -6/Garrison | Build established: Scavenger-Mutant 17911 | -6/Garrison | Lost 3 allies 18221 | -6/Garrison | Discovered exit to Factory (range 12) 18273 | -6/Garrison | Lost 3 allies 18307 | -6/Garrison | Triggered checkpoint 18363 | -6/Garrison | Triggered checkpoint 18477 | -6/Garrison | Discovered exit to Factory (range 13) 18666 | -6/Garrison | Discovered exit to Factory (range 11) 18672 | -6/Garrison | Spotted B-75 Beast 18700 | -6/Garrison | Rewired B-86 Titan 18718 | -6/Garrison | Destroyed B-75 Beast 18813 | -6/Garrison | Triggered checkpoint 18844 | -6/Garrison | Garrison Relay disabled 19226 | -6/Garrison | Build established: Scavenger-Gladiator 19286 | -6/Garrison | Core integrity fell below 20% 19324 | -6/Garrison | Lost 8 parts (1p3n2u2w) 19557 | -6/Garrison | Build established: Scavenger-Mutant 19701 | -6/Garrison | Triggered checkpoint 19762 | -6/Garrison | Garrison Relay disabled 20075 | -6/Garrison | Entered Factory 20075 | -5/Factory | Accompanied by 1 ally 20075 | -5/Factory | Evolved 2 slots: Utility x2 20130 | -5/Factory | Fabricated K-01 Serf (x4) 20181 | -5/Factory | Lost 3 allies 20375 | -5/Factory | First assault squad dispatched 20473 | -5/Factory | Lost 3 allies 20916 | -5/Factory | Discovered new exit (range 19) 21016 | -5/Factory | Fabricated Cmb. Airjet (x2) 21138 | -5/Factory | Lost 3 parts (3n) 21436 | -5/Factory | Lost 4 parts (1p3u) 21732 | -5/Factory | Identified exit to Garrison 21732 | -5/Factory | Entered Garrison 21794 | -5/Garrison | Triggered checkpoint 21813 | -5/Garrison | Expanded RIF knowledge: Threat Obfuscation 21819 | -5/Garrison | Garrison Relay disabled 21942 | -5/Garrison | Spotted B-75 Beast 21959 | -5/Garrison | Allies destroyed B-75 Beast 22017 | -5/Garrison | Discovered new exit (range 8) 22038 | -5/Garrison | Entered Factory 22038 | -5/Factory | Accompanied by 2 allies 22501 | -5/Factory | Discovered new exit (range 5) 22527 | -5/Factory | Entered another Factory area 22527 | -4/Factory | Evolved 2 slots: Propulsion x1, Weapon x1 22531 | -4/Factory | Identified exit to DSF 22549 | -4/Factory | Identified exit to Research 22974 | -4/Factory | Spotted B-86 Titan 23065 | -4/Factory | Fabricated Cmb. Airjet (x2) 23095 | -4/Factory | Lost 3 parts (2n1u) 23221 | -4/Factory | Discovered new exit (range 10) 23226 | -4/Factory | Entered Extension 23297 | -4/Extension | System corruption reached 10% 23328 | -4/Extension | Core integrity fell below 50% 23358 | -4/Extension | Lost 13 parts (2p5n5u1w) 23420 | -4/Extension | Rescued a captive Derelict 23421 | -4/Extension | Rescued a captive Derelict 23437 | -4/Extension | Energy Cycler disabled 23437 | -4/Extension | Rescued a captive Derelict 23438 | -4/Extension | Rescued a captive Derelict 23438 | -4/Extension | Rescued a captive Derelict 23439 | -4/Extension | Rescued a captive Derelict 23448 | -4/Extension | Rescued a captive Derelict 23451 | -4/Extension | Rescued a captive Derelict 23571 | -4/Extension | System corruption reached 30% 23644 | -4/Extension | Spotted B-86 Titan 23687 | -4/Extension | Lost 3 allies 23937 | -4/Extension | Build established: Commander-Gladiator 24029 | -4/Extension | Spotted B-86 Titan 24029 | -4/Extension | Discovered exit to Research (range 19) 24032 | -4/Extension | Allies destroyed B-86 Titan 24042 | -4/Extension | Extracted ID and sensor layout for unrecognized location from A7's data core 24049 | -4/Extension | Allies destroyed B-86 Titan 24078 | -4/Extension | Lost 3 allies 24355 | -4/Extension | Build established: Scavenger-Gladiator 24755 | -4/Extension | Lost 3 allies 24925 | -4/Extension | Lost 3 parts (2n1u) 25053 | -4/Extension | Discovered exit to Research (range 10) 25054 | -4/Extension | Discovered new exit (range 6) 25276 | -4/Extension | Disrupted transfer network 25423 | -4/Extension | Lost 3 allies 25915 | -4/Extension | Entered Cetus 25929 | -4/Cetus | Spotted Cetus Guard 25929 | -4/Cetus | Spotted Cetus Guard 25933 | -4/Cetus | Spotted Cetus Guard 25933 | -4/Cetus | Spotted Cetus Guard 25941 | -4/Cetus | Destroyed Cetus Guard 25947 | -4/Cetus | Destroyed Cetus Guard 25953 | -4/Cetus | Destroyed Cetus Guard 25983 | -4/Cetus | Core integrity fell below 20% 25991 | -4/Cetus | Destroyed Cetus Guard 26020 | -4/Cetus | Lost 5 parts (1p3n1w) 26026 | -4/Cetus | Discovered exit to Research (range 15) 26177 | -4/Cetus | Build established: Scavenger-Mutant 26308 | -4/Cetus | Discovered new exit (range 15) 26334 | -4/Cetus | Spotted Cetus Guard 26334 | -4/Cetus | Spotted Cetus Guard 26335 | -4/Cetus | Spotted Cetus Guard 26336 | -4/Cetus | Spotted Cetus Guard 26414 | -4/Cetus | Destroyed Cetus Guard 26425 | -4/Cetus | Destroyed by Cetus Guard with Advanced KE Penetrator Last Messages --------------- 26408_ Phasing Sabre follow-up attack on Cetus Guard. 26409_ Slug penetrates Cetus Guard. 26410_ Penetrated by Slug. 26411_ System corrupted: Component data lost. 26412_ Rnf. Fission Core destroyed. 26412_ Penetrated by Slug. 26412_ Machine disabled. 26412_ Penetrated by Slug. 26413_ Myomer Leg destroyed. 26414_ Cetus Guard destroyed. 26415_ Phasing Sabre destroyed. 26415_ Hacking Suite destroyed. 26415_ Penetrated by Slug. 26420_ Cetus Guard Prototype Energy Gun severed. 26421_ Slug penetrates Cetus Guard. 26421_ Penetrated by Slug. 26424_ Lyr. Light Armor Plating destroyed. 26424_ Penetrated by Slug. 26425_ Imp. Melee Analysis Suite destroyed. 26425_ Penetrated by Slug. Map ----- +----------------------------------------------------+ | ?????????????????????????????????????# #???????? | | ?????????????????????????????????????# #???????? | | ?????????????????????????????????????# #???????? | | ?????????????????????????????????????# #???????? | | ?????????????????????????????????????# #???????? | | ?????????????????????????????????????# #???????? | | ?????????????????????????????????????# #???????? | | ?????????????????????????????????????# #???????? | | ?????????????????????????????????????# #???????? | | ?????????????????????????????????????# #???????? | | ?????????????????????????????????????# #???????? | | ?????????????????????????????????????# #???????? | | ?????????????????????????????????????# #???????? | | ?????????????????????????????????????# #???????? | | ?????????????????????????????????????# #???????? | | ?????????????????????????????????????# #???????? | | ?????????????????????????????????????# #???????? | | ????????" """ "????##????????????????# #???????? | | ???? " """"""" " #""???????????????# #???????? | | ???#"""""""""""""""#"######??????????# #???????? | | ##?#""""" """ """""#" """"#??????????# #???????? | | ###""""""" """""""# ""#??????????# #???????? | | #""" " " """#T " #??????????# #???????? | | ## #" """ """ "#" #??????????# #???????? | | ### !############ ######### | | @/% | | [[Y < | | Y Y/ | | # #" ######################## | | # #" "" """"""""# #??????????????????????? | | #########++############ #######????????????????? | | #?##" " ""# #????????????????? | | #??###" """# #????????????????? | | ???#" " ""# """ " " #????????????????? | | ???###" """# " " """ #????????????????? | | ???#" "### """""" " #????????????????? | | ???#" """"#" " """""" #????????????????? | | ???#" T"""#"" "" "#????????????????? | | ???#" """"#" " " """"""#????????????????? | | ???### "### """" "" "#????????????????? | | ???# """"#" """"""" #????????????????? | | ???#" " T"""#""""""""" #????????????????? | | ???#" """"#" " " "#????????????????? | | ???#" " " #"### " """""""""#????????????????? | | ???# #""?# """ "#????????????????? | | ???#""" """#"""# " #????????????????? | | ???#########???#################?????????????????? | | ?????????????????????????????????????????????????? | | ?????????????????????????????????????????????????? | | ?????????????????????????????????????????????????? | +----------------------------------------------------+ Best States ------------- Heat Dissipation 71 Coolant Potential 145 Energy Generation 39 Energy Capacity 860 Matter Stores 300 Matter Capacity 300 Sight Range 22 Terrain Scan Range 20 Terrain Scan Density 210 ECM Strength 2 Jamming Range 14 Power Amplification 20 Additional Mass Support 12 Armor Coverage 750 Propulsion Shielding 66 Phase Shifting 5 Evasion (%) 67 Melee Accuracy 12 Launcher Accuracy 20 Target Analysis 11 Recoil Reduction 5 Matter Filtering 50 Energy Filtering 50 Force Boost 20 Offensive Hacking 20 Relay Coupler Types 3 Relay Coupler Value 65 Authchip Count 1 Item Schematics ----------------- Cmb. Airjet | -8/Materials | Scanalyzed Robot Schematics ------------------ None Fabricated ------------ Quantum Capacitor | x2 | -6/Factory | Preloaded K-01 Serf | x4 | -5/Factory | Preloaded Cmb. Airjet | x2 | -5/Factory Cmb. Airjet | x2 | -4/Factory Alien Tech Used ----------------- None Achievements -------------- Armchair Analyst Assassin Assimilation Complete Deadly Force Challenges ------------ None Game ------ Seed TerrainSlugCapacitor Manual? 0 Play Time 03:35:54 Cumulative 77.0 hours Start 2024.09.14 @ 12:01:04 End 2024.09.14 @ 15:55:44 Sessions 1 Manual Loads 0 Difficulty Rogue Special Mode None Game No. 99 Rogue 99 Adventurer 0 Explorer 0 Win Type - Total 1 Types 1/0/0/0/0/0/0/0/0 Lore% 17 Gallery% 54 Achievement% 43 Wizard Run 0 Options --------- Layout 0 ASCII 0 Keyboard 0 Movement Mouse Keybinds 1 Fullscreen 1 Font 18/TerminusBold Map View 76x50 Zoom Use 0% Tactical HUD 1 Map Filters NONE Filters NONE Steam 1 RUN: 4b144dc7-fced-470b-b51c-e7e60db8df3e